fUST/lending_fUST_20250311
["ID","MTS","AMOUNT","RATE_DAILY","PERIOD"]
[355829992,1741631439181,-3000.0,0.00048387,2]
[355829993,1741631439190,-55555.0,0.00048387,120]
[355829994,1741631439199,-20830.5729175,0.00048388,4]
[355829995,1741631439209,-204.80835706,0.00048388,4]
[355829996,1741631439220,-52076.4322938,0.0004839,4]
[355829997,1741631439229,-409.61671412,0.0004839,4]
[355829998,1741631439239,-77181.52304106,0.00048398,120]
[355829999,1741631439249,-35274.19415321,0.000484,36]
[355830000,1741631439259,-70019.6649291,0.000484,47]
[355830001,1741631439269,-222000.0,0.000484,2]
[355830002,1741631439279,-5036.96610676,0.000484,120]
[355830003,1741631439289,-563.546273,0.000484,56]
[355830004,1741631439299,-183.967461,0.000484,2]
[355830005,1741631439309,-179.42331514,0.000484,38]
[355830006,1741631439319,-158.68167274,0.00048411,120]
[355830007,1741631439331,-1608.92709208,0.00048411,120]
[355830008,1741631439340,-622.2,0.00048426,2]
[355830009,1741631439349,-500.0,0.00048443,120]
[355830010,1741631439359,-800.0,0.00048463,14]
[355830011,1741631439369,-215.78427688,0.00048465,2]
[355830014,1741631439379,-1222.47163815,0.00048467,2]
[355830017,1741631439389,-10415.2864588,0.00048467,4]
[355830018,1741631439399,-500.0,0.00048473,10]
[355830019,1741631439409,-500.0,0.00048473,10]
[355830020,1741631439419,-524.34274224,0.00048473,10]
[355830021,1741631439429,-389.52564847,0.00048473,10]
[355830022,1741631439439,-500.0,0.00048473,5]
[355830023,1741631439448,-500.0,0.00048473,10]
[355830024,1741631439458,-500.0,0.00048473,10]
[355830025,1741631439468,-500.0,0.00048473,10]
[355830026,1741631439477,-500.0,0.00048473,10]
[355830027,1741631439487,-500.0,0.00048473,10]
[355830028,1741631439496,-503.00694321,0.00048473,10]
[355830029,1741631439506,-153.61620045,0.00048473,10]
[355830030,1741631439515,-150.72251828,0.00048473,10]
[355830031,1741631439525,-10415.2864588,0.0004848,4]
[355830032,1741631439534,-20830.5729175,0.0004848,4]
[355830033,1741631439544,-645.2214,0.00048481,2]
[355830034,1741631439553,-151.0,0.00048487,90]
[355830036,1741631439562,-263.095924,0.00048487,120]
[355830037,1741631439572,-263.095924,0.00048487,120]
[355830039,1741631439583,-30048.77883092,0.00048487,120]
[355830041,1741631439593,-20830.5729175,0.0004849,4]
[355830042,1741631439602,-204.80835706,0.0004849,4]
[355830043,1741631439611,-41661.145835,0.0004849,4]
[355830044,1741631439621,-307.21253559,0.0004849,4]
[355830045,1741631439630,-838301.49475587,0.000485,120]
[355830046,1741631439640,-165.09,0.000485,30]
[355830047,1741631439649,-151.0,0.000485,120]
[355830048,1741631439659,-151.0,0.000485,120]
[355830049,1741631439669,-151.0,0.000485,120]
[355830050,1741631439678,-151.0,0.000485,120]
[355830051,1741631439688,-151.0,0.000485,120]
[355830052,1741631439697,-156.973625,0.000485,120]
[355830053,1741631439707,-156.973625,0.000485,120]
[355830054,1741631439717,-151.0,0.000485,120]
[355830055,1741631439726,-151.0,0.000485,120]
[355830056,1741631439735,-156.299868,0.000485,120]
[355830057,1741631439745,-293.810013,0.000485,120]
[355830058,1741631439754,-293.810013,0.000485,120]
[355830059,1741631439764,-151.0,0.000485,120]
[355830060,1741631439773,-154.022812,0.000485,120]
[355830061,1741631439783,-154.022812,0.000485,120]
[355830062,1741631439793,-151.0,0.000485,120]
[355830063,1741631439802,-151.0,0.000485,120]
[355830064,1741631439811,-297.761323,0.000485,120]
[355830065,1741631439820,-151.0,0.000485,120]
[355830066,1741631439832,-151.0,0.000485,120]
[355830067,1741631439841,-472.94,0.000485,30]
[355830068,1741631439850,-893.51,0.000485,30]
[355830069,1741631439860,-563.94,0.000485,30]
[355830070,1741631439869,-7608.05,0.000485,30]
[355830071,1741631439878,-151.0,0.000485,90]
[355830072,1741631439889,-151.0,0.000485,120]
[355830073,1741631439898,-310.526696,0.000485,120]
[355830074,1741631439908,-310.526696,0.000485,120]
[355830075,1741631439918,-263.095924,0.000485,120]
[355830076,1741631439928,-357.116014,0.000485,120]
[355830077,1741631439939,-263.095924,0.000485,120]
[355830078,1741631439954,-357.116014,0.000485,120]
[355830079,1741631439963,-172.594696,0.000485,120]
[355830081,1741631439972,-172.594696,0.000485,120]
[355830082,1741631439982,-153.984701,0.000485,120]
[355830083,1741631439995,-198.609174,0.000485,120]
[355830084,1741631440006,-198.609174,0.000485,120]
[355830086,1741631440017,-416.424452,0.000485,110]
[355830087,1741631440027,-416.424452,0.000485,110]
[355830088,1741631440037,-151.0,0.000485,120]
[355830089,1741631440047,-264.203879,0.000485,120]
[355830091,1741631440057,-566.786417,0.000485,120]
[355830092,1741631440067,-566.786417,0.000485,120]
[355830093,1741631440080,-151.0,0.000485,120]
[355830095,1741631440090,-457.453523,0.000485,120]
[355830096,1741631440100,-457.453523,0.000485,120]
[355830098,1741631440111,-151.0,0.000485,120]
[355830100,1741631440121,-2710.303804,0.000485,120]
[355830101,1741631440130,-2710.303804,0.000485,120]
[355830102,1741631440140,-500.0,0.000485,2]
[355830103,1741631440150,-500.0,0.000485,2]
[355830105,1741631440160,-190.291216,0.000485,120]
[355830106,1741631440170,-190.291216,0.000485,120]
[355830108,1741631440180,-956.33987994,0.00048506,2]
[355830109,1741631440320,-669.0945918,0.00048536,2]
[355830110,1741631440335,-693.8510917,0.00048591,2]
[355830111,1741631440346,-9444.10051297,0.00048593,2]
[355830112,1741631440356,-719.52358209,0.00048646,2]
[355830113,1741631440365,-317.36334548,0.00048658,120]
[355830114,1741631440375,-588.82832328,0.00048661,92]
[355830115,1741631440385,-500.0,0.00048693,2]
[355830116,1741631440395,-500.0,0.00048693,2]
[355830117,1741631440404,-500.0,0.00048693,2]
[355830118,1741631440415,-500.0,0.00048693,2]
[355830119,1741631440424,-150.43,0.00048693,11]
[355830120,1741631440434,-150.43,0.00048693,11]
[355830121,1741631440444,-203.90485185,0.00048693,11]
[355830122,1741631440453,-150.43,0.00048693,11]
[355830123,1741631440463,-150.43,0.00048693,11]
[355830124,1741631440473,-150.43,0.00048693,11]
[355830125,1741631440483,-152.22535786,0.00048693,11]
[355830126,1741631440493,-205.00501808,0.00048693,11]
[355830127,1741631440503,-158.0862398,0.00048693,11]
[355830128,1741631440512,-150.43,0.00048693,11]
[355830129,1741631440521,-150.43,0.00048693,11]
[355830130,1741631440531,-262.27258298,0.00048693,11]
[355830131,1741631440541,-500.0,0.00048693,11]
[355830132,1741631440550,-697.36916461,0.00048693,11]
[355830133,1741631440560,-150.43,0.00048693,2]
[355830134,1741631440570,-150.43,0.00048693,11]
[355830135,1741631440583,-150.43,0.00048693,11]
[355830136,1741631440594,-276.84948267,0.00048693,11]
[355830137,1741631440604,-150.43,0.00048693,2]
[355830138,1741631440614,-2109.0,0.00048693,11]
[355830139,1741631440625,-2109.0,0.00048693,11]
[355830140,1741631440635,-2109.0,0.00048693,11]
[355830141,1741631440645,-2109.0,0.00048693,11]
[355830142,1741631440655,-2109.0,0.00048693,11]
[355830143,1741631440664,-2109.0,0.00048693,11]
[355830144,1741631440674,-2109.0,0.00048693,11]
[355830145,1741631440684,-2109.0,0.00048693,11]
[355830146,1741631440694,-2109.0,0.00048693,11]
[355830147,1741631440704,-2109.0,0.00048693,11]
[355830148,1741631440713,-2109.0,0.00048693,11]
[355830149,1741631440722,-2109.0,0.00048693,11]
[355830150,1741631440731,-2109.0,0.00048693,11]
[355830151,1741631440741,-2109.0,0.00048693,11]
[355830152,1741631440750,-2109.0,0.00048693,11]
[355830153,1741631440759,-2109.0,0.00048693,11]
[355830154,1741631440769,-2109.0,0.00048693,11]
[355830155,1741631440779,-2109.0,0.00048693,11]
[355830156,1741631440788,-2109.0,0.00048693,11]
[355830157,1741631440797,-2121.65695463,0.00048693,11]
[355830158,1741631440806,-500.0,0.00048693,11]
[355830159,1741631440816,-500.0,0.00048693,11]
[355830160,1741631440830,-500.0,0.00048693,11]
[355830161,1741631440840,-500.0,0.00048693,11]
[355830162,1741631440850,-500.0,0.00048693,11]
[355830163,1741631440860,-500.0,0.00048693,11]
[355830164,1741631440870,-500.0,0.00048693,11]
[355830165,1741631440879,-500.0,0.00048693,11]
[355830166,1741631440889,-500.0,0.00048693,11]
[355830167,1741631440899,-500.0,0.00048693,11]
[355830168,1741631440909,-500.0,0.00048693,11]
[355830169,1741631440919,-590.56073626,0.00048693,11]
[355830170,1741631440929,-536.1,0.000487,30]
[355830171,1741631440939,-746.14595463,0.00048701,2]
[355830172,1741631440948,-799.3854481,0.00048704,30]
[355830173,1741631440962,-500.0,0.00048717,120]
[355830174,1741631440973,-773.75335495,0.00048756,2]
[355830175,1741631440983,-588.82832328,0.00048761,100]
[355830176,1741631440994,-500.0,0.00048767,120]
[355830177,1741631441006,-500.0,0.00048773,10]
[355830178,1741631441016,-500.0,0.00048773,10]
[355830179,1741631441026,-65292.96153256,0.00048799,2]
[355830180,1741631441042,-1934707.03846744,0.00048799,2]
[355830181,1741631441052,-512.66521294,0.00048799,18]
[355830182,1741631441063,-369534.4986281,0.000488,8]
[355830183,1741631441072,-151.0,0.000488,120]
[355830184,1741631441088,-151.0,0.000488,120]
[355830185,1741631441099,-1500.0,0.000488,120]
[355830186,1741631441110,-154.969451,0.000488,120]
[355830187,1741631441120,-151.0,0.000488,120]
[355830188,1741631441131,-152.222656,0.000488,120]
[355830189,1741631441141,-156.973625,0.000488,120]
[355830190,1741631441152,-156.973625,0.000488,120]
[355830191,1741631441163,-151.0,0.000488,120]
[355830192,1741631441174,-159.996637,0.000488,120]
[355830193,1741631441184,-293.810013,0.000488,120]
[355830194,1741631441194,-293.810013,0.000488,120]
[355830195,1741631441205,-151.0,0.000488,120]
[355830196,1741631441215,-154.022812,0.000488,120]
[355830197,1741631441226,-154.022812,0.000488,120]
[355830198,1741631441236,-151.0,0.000488,120]
[355830199,1741631441246,-151.0,0.000488,120]
[355830200,1741631441255,-151.0,0.000488,120]
[355830201,1741631441266,-151.0,0.000488,120]
[355830202,1741631441276,-151.0,0.000488,90]
[355830203,1741631441286,-255.088096,0.000488,120]
[355830204,1741631441296,-310.526696,0.000488,120]
[355830205,1741631441306,-310.526696,0.000488,120]
[355830206,1741631441317,-3041.62918848,0.000488,120]
[355830207,1741631441327,-263.095924,0.000488,120]
[355830208,1741631441339,-357.116014,0.000488,120]
[355830209,1741631441350,-263.095924,0.000488,120]
[355830210,1741631441360,-357.116014,0.000488,120]
[355830211,1741631441370,-159.16457,0.000488,120]
[355830212,1741631441380,-280.907208,0.000488,30]
[355830213,1741631441390,-172.594696,0.000488,120]
[355830214,1741631441399,-280.907208,0.000488,30]
[355830215,1741631441409,-172.594696,0.000488,120]
[355830216,1741631441419,-282.315081,0.000488,120]
[355830217,1741631441428,-282.315081,0.000488,120]
[355830218,1741631441438,-151.0,0.000488,120]
[355830219,1741631441448,-151.0,0.000488,120]
[355830220,1741631441458,-237.71766,0.000488,120]
[355830221,1741631441468,-237.71766,0.000488,120]
[355830222,1741631441478,-727.422935,0.000488,120]
[355830223,1741631441487,-727.422935,0.000488,120]
[355830224,1741631441497,-151.0,0.000488,120]
[355830225,1741631441507,-151.0,0.000488,120]
[355830226,1741631441516,-151.0,0.000488,120]
[355830227,1741631441526,-198.609174,0.000488,120]
[355830228,1741631441535,-151.0,0.000488,120]
[355830229,1741631441545,-198.609174,0.000488,120]
[355830230,1741631441555,-151.0,0.000488,120]
[355830231,1741631441564,-416.424452,0.000488,110]
[355830232,1741631441574,-416.424452,0.000488,110]
[355830233,1741631441586,-151.0,0.000488,120]
[355830234,1741631441596,-151.0,0.000488,120]
[355830235,1741631441606,-566.786417,0.000488,120]
[355830236,1741631441620,-566.786417,0.000488,120]
[355830237,1741631441629,-151.0,0.000488,120]
[355830238,1741631441639,-151.0,0.000488,120]
[355830239,1741631441649,-457.453523,0.000488,120]
[355830240,1741631441658,-457.453523,0.000488,120]
[355830241,1741631441668,-151.0,0.000488,120]
[355830242,1741631441677,-151.0,0.000488,120]
[355830243,1741631441687,-75080.47144736,0.000488,8]
[355830244,1741631441697,-2710.303804,0.000488,120]
[355830245,1741631441707,-2710.303804,0.000488,120]
[355830246,1741631441716,-500.0,0.000488,2]
[355830247,1741631441726,-500.0,0.000488,2]
[355830248,1741631441736,-190.291216,0.000488,120]
[355830249,1741631441745,-190.291216,0.000488,120]
[355830250,1741631441755,-802.38222908,0.00048811,2]
[355830251,1741631441764,-588.82832328,0.00048861,99]
[355830252,1741631441774,-832.07037156,0.00048866,2]
[355830253,1741631441784,-9191.05871279,0.000489,120]
[355830254,1741631441901,-162.21,0.000489,120]
[355830255,1741631441911,-1608.92,0.000489,120]
[355830256,1741631441922,-317.36334548,0.00048904,120]
[355830257,1741631441931,-156.587,0.00048919,2]
[355830258,1741631441942,-862.8569753,0.00048921,2]
[355830259,1741631441956,-588.82832328,0.00048961,92]
[355830260,1741631441966,-894.78268339,0.00048976,2]
[355830261,1741631441976,-500.0,0.00048991,120]
[355830262,1741631441985,-724.38282439,0.00049,51]
[355830264,1741631442248,-3070.85386362,0.00049,51]
[355830277,1741631443255,-1400.41578538,0.00045547,28]
[355830278,1741631443264,-199.0,0.00048,90]
[355830279,1741631443274,-500.0,0.00048241,6]
[355830280,1741631443284,-500.0,0.00048378,6]
[355830281,1741631443294,-500.0,0.00048515,6]
[355830282,1741631443304,-6204.76331199,0.00049,51]
[355830283,1741631443314,-1000.0,0.00049,120]
[355830284,1741631443324,-4627.0,0.00049,120]
[355830285,1741631443336,-647.02090263,0.00049,90]
[355830286,1741631443493,-74.40463323,0.00049,90]
[355830295,1741631445806,-500.0,0.00048652,6]
[355830296,1741631445816,-500.0,0.00048789,6]
[355830297,1741631445826,-2204.35,0.0004889,10]
[355830298,1741631445841,-1525.51446414,0.00049,90]
[355830299,1741631445851,-165.57429306,0.00049,30]
[355830300,1741631445861,-109833.11697349,0.00049,90]
[355830301,1741631445878,-288.10861632,0.00049,90]
[355830330,1741632550146,-591.03764425,0.0002801,2]
[355830331,1741632550170,-1364.34089951,0.00032449,2]
[355830332,1741632550193,-220.591182,0.0003589,2]
[355830333,1741632550215,-214.07885091,0.000359,7]
[355830334,1741632550237,-214.07885089,0.00039733,8]
[355830335,1741632550261,-500.0,0.0004094,2]
[355830336,1741632550287,-42.21545608,0.0004094,2]
[355830368,1741632632102,-313.198072,0.00038799,120]
[355830370,1741632632112,-150.0,0.0003884,2]
[355830372,1741632632122,-182.973018,0.00039138,2]
[355830374,1741632632131,-457.78454392,0.0004094,2]
[355830376,1741632632141,-500.0,0.0004094,2]
[355830378,1741632632151,-624.57831502,0.0004094,2]
[355830380,1741632632160,-22949.76567042,0.00040941,2]
[355830391,1741632632262,-1950.23432958,0.00040941,2]
[355830393,1741632632272,-168.47863663,0.00041111,120]
[355830395,1741632632282,-220.591182,0.00041211,2]
[355830397,1741632632291,-200.0,0.000435,2]
[355830399,1741632632300,-214.07885089,0.00043567,9]
[355830401,1741632632311,-150.0,0.0004384,2]
[355830403,1741632632323,-168.4786366,0.00044488,120]
[355830405,1741632632333,-354.01098768,0.00045209,2]
[355830407,1741632632343,-313.198072,0.00045266,120]
[355830409,1741632632352,-700.20789269,0.00046279,28]
[355830412,1741632632363,-1964.19721749,0.00046317,19]
[355830414,1741632632373,-2757.16332154,0.00046379,2]
[355830416,1741632632383,-220.591182,0.00046532,2]
[355830418,1741632632393,-500.0,0.00046575,120]
[355830420,1741632632404,-2150.51665052,0.00046578,120]
[355830422,1741632632413,-158.68167274,0.00046767,120]
[355830424,1741632632424,-185.24844106,0.000468,2]
[355830425,1741632632433,-151.0,0.00046872,2]
[355830427,1741632632442,-600.0,0.00046872,2]
[355830430,1741632632452,-500.0,0.00046873,10]
[355830431,1741632632462,-500.0,0.00046873,7]
[355830433,1741632632471,-2378.57,0.0004689,10]
[355830436,1741632632482,-168.847,0.0004689,78]
[355830438,1741632632492,-37252.8562925,0.0004689,4]
[355830440,1741632632508,-1194.3209539,0.0004689,4]
[355830443,1741632632518,-11679.31,0.00046899,120]
[355830444,1741632632528,-222000.0,0.000469,2]
[355830446,1741632632538,-905.06,0.000469,30]
[355830449,1741632632547,-563.32,0.000469,30]
[355830451,1741632632557,-278.0,0.000469,30]
[355830453,1741632632567,-622.2,0.00046927,2]
[355830455,1741632632577,-645.2214,0.00046982,2]
[355830457,1741632632587,-171.92432906,0.00046988,28]
[355830459,1741632632600,-528.28356363,0.00046988,28]
[355830460,1741632632611,-669.0945918,0.00047037,2]
[355830461,1741632632621,-370.87657112,0.00047092,2]
[355830522,1741632637903,-366.62350026,0.00046889,120]
[355830523,1741632637922,-375.366441,0.00046889,31]
[355830524,1741632637938,-322.97452058,0.00047092,2]
[355830527,1741632637955,-383.6576875,0.00047123,120]
[355830543,1741632640255,-5000.44755093,0.000468,2]
[355830564,1741632643241,-638.9425372,0.000468,2]
[355830568,1741632644460,5000.0,0.00027,3]
[355830579,1741632645986,-339.38,0.0004679,30]
[355830580,1741632645997,-97.07372742,0.000468,2]
[355830581,1741632646010,-19243.10310975,0.000468,2]
[355830586,1741632652330,5000.0,0.00027,3]
[355830590,1741632668640,5000.0,0.00027,3]
[355830591,1741632670308,160.0,0.0002,3]
[355837339,1741633751147,-500.0,0.0002801,2]
[355837340,1741633751172,-800.0,0.0002801,2]
[355837341,1741633751195,-504.96909628,0.00033,14]
[355837342,1741633751216,-198.307323,0.000349,2]
[355837343,1741633751238,-441.03755543,0.000349,7]
[355837344,1741633751259,-252.25,0.00035,5]
[355837345,1741633751281,-195.625198,0.0003589,2]
[355837346,1741633751305,-252.25,0.00036498,5]
[355837347,1741633751332,-500.0,0.00037306,2]
[355837348,1741633751356,-500.0,0.00037306,2]
[355837349,1741633751381,-281.04861495,0.00037306,2]
[355837427,1741633835535,-429.55186917,0.00035206,2]
[355837428,1741633835545,-500.0,0.00037306,2]
[355837430,1741633835556,-500.0,0.00037306,15]
[355837431,1741633835566,-500.0,0.00037306,15]
[355837432,1741633835576,-500.0,0.00037306,2]
[355837433,1741633835586,-500.0,0.00037306,2]
[355837434,1741633835596,-500.0,0.00037306,2]
[355837435,1741633835606,-218.95138505,0.00037306,2]
[355837436,1741633835616,-500.0,0.00037306,15]
[355837437,1741633835626,-500.0,0.00037306,2]
[355837438,1741633835636,-500.0,0.00037306,2]
[355837439,1741633835648,-514.41038845,0.00037306,15]
[355837440,1741633835658,-500.0,0.00037306,2]
[355837441,1741633835668,-500.0,0.00037306,2]
[355837442,1741633835678,-500.0,0.00037306,2]
[355837443,1741633835688,-500.0,0.00037306,2]
[355837444,1741633835702,-500.0,0.00037306,2]
[355837445,1741633835712,-500.0,0.00037306,2]
[355837446,1741633835722,-500.0,0.00037306,2]
[355837447,1741633835732,-500.0,0.00037306,2]
[355837448,1741633835743,-500.0,0.00037306,2]
[355837449,1741633835752,-500.0,0.00037306,2]
[355837450,1741633835915,-500.0,0.00037306,2]
[355837451,1741633835943,-500.0,0.00037306,2]
[355837452,1741633835954,-500.0,0.00037306,2]
[355837453,1741633835964,-24900.0,0.00037307,2]
[355837454,1741633835975,-500.0,0.000374,5]
[355837455,1741633835985,-194.6506162,0.000374,5]
[355837456,1741633835995,-510.4191372,0.000374,5]
[355837457,1741633836005,-500.0,0.000374,5]
[355837458,1741633836015,-500.0,0.000374,2]
[355837459,1741633836025,-500.0,0.000374,5]
[355837460,1741633836035,-500.0,0.000374,5]
[355837461,1741633836045,-220.21503336,0.000374,5]
[355837462,1741633836056,-500.01596826,0.000374,5]
[355837463,1741633836066,-500.0,0.000374,5]
[355837464,1741633836075,-500.0,0.000374,5]
[355837465,1741633836086,-500.0,0.000374,5]
[355837466,1741633836096,-503.25237333,0.000374,5]
[355837467,1741633836106,-500.0,0.000374,5]
[355837468,1741633836115,-500.0,0.000374,5]
[355837469,1741633836125,-285.11917459,0.000374,5]
[355837470,1741633836135,-151.54212015,0.000374,5]
[355837471,1741633836147,-500.0,0.000374,5]
[355837472,1741633836157,-429.55186917,0.00040206,2]
[355837473,1741633836167,-160.0,0.00040924,2]
[355837474,1741633836177,-195.625198,0.00041211,2]
[355837475,1741633836186,-1000.0,0.00042879,10]
[355837476,1741633836196,-846.71652917,0.00042879,7]
[355837477,1741633836206,-1000.0,0.00042879,2]
[355837478,1741633836216,-1000.0,0.00042879,10]
[355837479,1741633836225,-508.51706842,0.00042879,10]
[355837480,1741633836235,-368.33359264,0.00042879,10]
[355837481,1741633836244,-1000.0,0.00042879,10]
[355837482,1741633836254,-630.03945843,0.00044973,10]
[355837483,1741633836264,-500.0,0.00044973,10]
[355837484,1741633836274,-354.34677097,0.00044999,31]
[355837485,1741633836284,-256.63645018,0.00044999,120]
[355837486,1741633836293,-1840.99485545,0.00045,120]
[355837487,1741633836303,-36285.20824297,0.00045,2]
[355837488,1741633836313,-169.482,0.00045,72]
[355837489,1741633836324,-32625.05947798,0.00045,2]
[355837490,1741633836334,-252.25,0.00045067,120]
[355837491,1741633836344,-429.55186917,0.00045206,2]
[355837492,1741633836353,-151.0,0.000458,2]
[355837493,1741633836363,-151.7718454,0.000459,30]
[355837494,1741633836373,-337.20856443,0.0004608,10]
[355837495,1741633836383,-158.68167274,0.00046164,120]
[355837496,1741633836393,-646.35739322,0.0004618,10]
[355837497,1741633836406,-311.41180581,0.0004618,10]
[355837498,1741633836417,-235.68,0.0004618,30]
[355837499,1741633836427,-339.38,0.0004619,30]
[355837500,1741633836436,-282.82,0.0004619,30]
[355837501,1741633836446,-196.4,0.0004619,30]
[355837502,1741633836455,-163.67,0.0004619,30]
[355837503,1741633836465,-158.68167274,0.00046411,120]
[355837504,1741633836475,-818.38,0.00046526,30]
[355837505,1741633836485,-4458.78,0.00046526,10]
[355837506,1741633836494,-1049.52214465,0.00046526,10]
[355837551,1741633838335,-4751.84785535,0.00046526,10]
[355837552,1741633838346,-195.625198,0.00046532,2]
[355837553,1741633838356,-6079.23309663,0.00046536,10]
[355837554,1741633838479,-1028.50247282,0.000373,2]
[355837555,1741633838490,-760.29085424,0.00046536,10]
[355837556,1741633838503,-122.12604913,0.00046536,10]
[355837558,1741633838514,-27376.8595835,0.00046546,4]
[355837559,1741633838524,-1963.80555304,0.00046566,19]
[355837560,1741633838534,-500.0,0.00046575,120]
[355837561,1741633838545,-158.68167274,0.00046658,120]
[355837562,1741633838555,-951.39593499,0.0004669,2]
[355837563,1741633838566,-2140.18534852,0.00046699,2]
[355837564,1741633838575,-716.21616892,0.00046709,2]
[355837565,1741633838586,-151.0,0.00046772,2]
[355837566,1741633838596,-600.0,0.00046772,2]
[355837567,1741633838607,-500.0,0.00046773,10]
[355837568,1741633838616,-501.41800639,0.00046773,10]
[355837569,1741633838627,-160.16007799,0.00046773,10]
[355837570,1741633838638,-225.389919,0.00046773,10]
[355837571,1741633838652,-500.98963645,0.00046773,10]
[355837572,1741633838663,-500.0,0.00046773,10]
[355837573,1741633838674,-500.0,0.00046773,10]
[355837574,1741633838684,-500.0,0.00046773,10]
[355837575,1741633838695,-500.0,0.00046773,10]
[355837576,1741633838706,-500.0,0.00046773,10]
[355837577,1741633838722,-160.0,0.00046773,10]
[355837578,1741633838733,-500.0,0.00046773,10]
[355837579,1741633838745,-500.0,0.00046773,10]
[355837580,1741633838755,-268.3953007,0.00046773,10]
[355837581,1741633838767,-500.0,0.00046773,10]
[355837582,1741633838777,-500.0,0.00046773,10]
[355837583,1741633838787,-500.0,0.00046773,10]
[355837584,1741633838797,-500.0,0.00046773,10]
[355837585,1741633838807,-500.0,0.00046773,10]
[355837586,1741633838818,-500.0,0.00046773,10]
[355837587,1741633838829,-172.30583325,0.00046773,10]
[355837588,1741633838839,-11655.74,0.00046788,120]
[355837589,1741633838850,-54753.719167,0.0004679,4]
[355837590,1741633838860,-416.66666667,0.0004679,10]
[355837591,1741633838871,-109507.438334,0.0004679,4]
[355837592,1741633838881,-43605.4631133,0.00046799,47]
[355837593,1741633838892,-43190.75257459,0.000468,36]
[355837594,1741633838905,-197020.4330747,0.000468,2]
[355837595,1741633838916,-274.79,0.000468,30]
[355837596,1741633838927,-909.51,0.000468,30]
[355837597,1741633838937,-667.82,0.000468,30]
[355837598,1741633838947,-622.2,0.00046827,2]
[355837599,1741633838957,-7847.99999901,0.00046849,120]
[355837600,1741633838967,-645.2214,0.00046882,2]
[355837601,1741633838978,-251.67,0.00046899,30]
[355837602,1741633838988,-500.0,0.00046899,120]
[355837603,1741633838998,-158.68167274,0.00046904,120]
[355837604,1741633839008,-669.0945918,0.00046937,2]
[355837605,1741633839018,-693.8510917,0.00046992,2]
[355837606,1741633839028,-719.52358209,0.00047047,2]
[355837607,1741633839039,-746.14595463,0.00047102,2]
[355837608,1741633839049,-500.0,0.00047123,120]
[355837609,1741633839059,-158.68167274,0.00047151,120]
[355837610,1741633839070,-773.75335495,0.00047157,2]
[355837611,1741633839080,-500.0,0.00047173,120]
[355837612,1741633839091,-802.38222908,0.00047212,2]
[355837613,1741633839102,-951.39593498,0.00047218,2]
[355837614,1741633839112,-832.07037156,0.00047267,2]
[355837615,1741633839123,-156.587,0.0004732,2]
[355837616,1741633839134,-862.8569753,0.00047322,2]
[355837617,1741633839145,-894.78268339,0.00047377,2]
[355837618,1741633839160,-158.68167274,0.00047397,120]
[355837619,1741633839171,-927.88964268,0.00047432,2]
[355837620,1741633839181,-27376.8595835,0.00047437,4]
[355837621,1741633839191,-500.0,0.00047447,120]
[355837622,1741633839201,-962.22155946,0.00047487,2]
[355837623,1741633839210,-1000.0,0.000475,120]
[355837624,1741633839228,-997.82375716,0.00047542,2]